[Event "Romanian Championship Open 2025"]
[Site "Craiova"]
[Date "2025.02.19"]
[Round "5.8"]
[White "Parligras, Mircea-Emilian"]
[Black "Sava, Robert-Gabriel"]
[Result "0-1"]
[Annotator "TA"]
[ECO "D45"]
[WhiteElo "2528"]
[BlackElo "2183"]
[PlyCount "90"]
[EventDate "2025.02.12"]
[EventType "swiss"]
[EventCountry "ROU"]
[SourceTitle "playchess.com"]
[Source "ChessBase"]
[SourceQuality "1"]
[TimeControl "40/5400+30:900+30"]

{[%evp 16,88,2,4,7,0,18,21,41,42,56,58,58,59,59,60,60,62,74,54,44,56,109,86,99,72,87,94,131,109,156,144,123,152,159,79,150,116,122,108,108,108,108,110,124,90,173,149,156,-72,206,206,226,0,0,0,0,0,0,0,0,0,0,0,0,-111,-142,-141,-126,-410,-404,-462,-284,-29969,-29972]} 1. d4 {[%emt 0:00:04]} d5 {[%emt 0:00:13]} 2. c4 {[%emt 0:00:09]} c6 {[%emt 0:00:14]} 3. Nc3 {[%emt 0:00:37]} Nf6 {[%emt 0:00:24]} 4. e3 {[%emt 0:00:09]} e6 {[%emt 0:00:21]} 5. Nf3 {[%emt 0:00:09]} Nbd7 {[%emt 0:00:17]} 6. Be2 {[%emt 0:00:50]} Bd6 {[%emt 0:00:24]} 7. b3 {[%emt 0:00:29]} O-O {[%emt 0:00:40]} 8. Bb2 {[%emt 0:00:17]} Qe7 {[%emt 0:00:30]} 9. O-O {[%emt 0:00:24]} b6 {[%emt 0:00:27][%cal Bb7b6,Bb6b5][%mdl 32] D45: Semi-Slav: 5 e3.} 10. a4 {[%emt 0:00:33][%cal Ba2a4,Ba4a5][%mdl 32]} a6 {[%emt 0:02:12]} 11. Qc2 {[%emt 0:00:41]} Bb7 {[%emt 0:00:38] The position is equal.} 12. a5 {[%emt 0:01:28]} b5 {[%emt 0:01:29]} 13. c5 {[%emt 0:01:19]} Bc7 {[%emt 0:00:17]} 14. b4 {[%emt 0:06:55]} e5 {[%emt 0:03:36]} 15. dxe5 {[%emt 0:00:08]} Nxe5 {[%emt 0:00:14]} 16. Nxe5 {[%emt 0:24:13]} Bxe5 {[%emt 0:01:43]} 17. f4 $146 {[%emt 0:00:33]} ({Predecessor:} 17. Bd3 Rae8 18. g3 Bc8 19. Ne2 Ng4 20. Bxh7+ Kh8 21. Bxe5 Nxe5 22. Bf5 Bxf5 23. Qxf5 {0-1 Tabatabaei,M (2613)-Smirnov,A (2600) Junior Speed Final blitz 2021 (1.22)}) 17... Bc7 {[%emt 0:11:46]} 18. Rf3 {[%emt 0:00:28]} Ne4 {[%emt 0:02:50]} (18... Rfe8 $14) 19. Nxe4 {[%emt 0:07:44]} dxe4 {[%emt 0:00:08]} 20. Rf2 {[%emt 0:01:36]} Rad8 {[%emt 0:00:57]} 21. g4 {[%emt 0:01:56][%cal Bg2g4,Bg4g5][%mdl 32]} Rd5 {[%emt 0:02:28]} 22. g5 {[%emt 0:06:04]} Rfd8 {[%emt 0:00:42]} (22... Bc8 $142) 23. Qc3 {[%emt 0:01:04][%csl Gb2][%cal Rc3g7]} Qf8 {[%emt 0:00:30]} 24. h4 {[%emt 0:01:29][%cal Bh2h4,Bh4h5][%mdl 32]} Bc8 {[%emt 0:02:58]} 25. Rg2 {[%emt 0:02:33]} (25. Re1 $142) 25... Bf5 {[%emt 0:01:25]} ({Black should try} 25... Rd2) 26. h5 {[%emt 0:01:42]} Rd3 {[%emt 0:01:28]} 27. Bxd3 {[%emt 0:00:07]} Rxd3 {[%emt 0:00:05]} 28. Qe1 {[%emt 0:00:11]} Qd8 {[%emt 0:00:21]} 29. Kh2 {[%emt 0:06:59]} Qd5 {[%emt 0:01:45]} 30. Ra3 {[%emt 0:01:16] aiming for Rxd3.} g6 {[%emt 0:04:31]} (30... Kf8 $16) 31. hxg6 {[%emt 0:11:42]} hxg6 {[%emt 0:00:55]} 32. Kg3 $2 {[%emt 0:07:53] [#]} (32. Rxd3 $1 $16 exd3 33. Bf6 (33. Qc3 Kf8 $14)) 32... Kf8 $2 {[%emt 0:06:08][%mdl 8192] Black is more active.} (32... Bxf4+ $1 $17 {keeps the pressure on.} 33. Kxf4 Bh3 (33... Rd1 $2 34. Qh4 $18)) 33. Rh2 $18 {[%emt 0:01:16]} Rd1 {[%emt 0:19:35]} 34. Qc3 {[%emt 0:02:57]} ({White should play} 34. Bf6 $18 {[%cal Rh2h8]} Ke8 (34... Bxf4+ $2 35. exf4 Rd3+ 36. Rxd3 $18) 35. Qe2) 34... Ke7 $11 {[%emt 0:00:28]} 35. Ra1 {[%emt 0:01:08]} Rd3 {[%emt 0:01:17]} 36. Qf6+ {[%emt 0:00:07] Counterplay Black} Kd7 {[%emt 0:00:05] The board is on fire.} 37. Re1 {[%emt 0:01:22]} Qb3 {[%emt 0:04:46][%csl LRb4,LRe3]} 38. Bc1 {[%emt 0:02:40]} Qxb4 {[%emt 0:03:47]} 39. Qxf7+ {[%emt 0:00:05]} Kc8 {[%emt 0:00:04]} 40. Rh8+ {[%emt 0:00:00]} (40. Rf1 $11 {remains equal.}) 40... Kb7 $17 {[%emt 0:00:00]} 41. Kf2 {[%emt 0:11:40]} Qxc5 {[%emt 0:04:14][%csl Od3] Strong Square Black (d3)} 42. Rh7 $2 {[%emt 0:05:22][%mdl 8192]} (42. Qa2 $17) 42... Rd7 $19 {[%emt 0:01:03]} ({Don't blunder} 42... Qc2+ $2 43. Re2 $18) 43. Qg8 {[%emt 0:00:05]} Bxa5 {[%emt 0:01:58]} 44. Reh1 {[%emt 0:02:38] [#]} (44. Rxd7+ $19 Bxd7 45. Rf1) 44... Qc2+ $1 {[%emt 0:00:22]} 45. Kg3 {[%emt 0:00:05]} Qe2 {[%emt 0:00:18] What a bad dream for White.   Weighted Error Value: White=0.48/Black=0.30  Loses game:     	White=1     	Black=1      Missed win:     	White=1     	---        Mistake:       	White=4     	Black=4      Inaccurate:     	---       	Black=2      OK:         	White=9     	Black=11     Best:        	White=3     	Black=5      Strong:       	---       	Black=1} 0-1

[Event "Romanian Championship Open 2025"]
[Site "Craiova"]
[Date "2025.02.19"]
[Round "5.9"]
[White "Ghimpu, Samuel-Timotei"]
[Black "Negrean, Andrei"]
[Result "1/2-1/2"]
[Annotator "TA"]
[ECO "B90"]
[WhiteElo "2456"]
[BlackElo "2224"]
[PlyCount "82"]
[EventDate "2025.02.12"]
[EventType "swiss"]
[EventCountry "ROU"]
[SourceTitle "playchess.com"]
[Source "ChessBase"]
[SourceQuality "1"]
[TimeControl "40/5400+30:900+30"]

{[%evp 13,82,12,25,9,19,-12,14,8,14,10,15,21,14,7,47,55,51,47,51,50,53,41,55,53,59,58,61,68,71,41,60,38,65,56,61,40,77,77,81,64,64,68,68,62,87,87,90,86,102,81,87,72,97,90,96,95,95,95,95,89,100,100,119,119,119,119,119,119,119,119,119]} 1. e4 {[%emt 0:03:01]} c5 {[%emt 0:00:13]} 2. Nf3 {[%emt 0:00:11]} d6 {[%emt 0:00:17]} 3. d4 {[%emt 0:00:20]} Nf6 {[%emt 0:00:16]} 4. Nc3 {[%emt 0:01:19]} cxd4 {[%emt 0:00:12]} 5. Nxd4 {[%emt 0:00:07]} a6 {[%emt 0:00:16]} 6. Be3 {[%emt 0:00:17]} e5 {[%emt 0:03:08]} 7. Nb3 {[%emt 0:00:50]} Be6 {[%emt 0:01:15]} 8. h3 {[%emt 0:00:14] B90: Sicilian Najdorf: Unusual White 6th moves, 6 Be3 Ng4 and 6 Be3 e5.} Nc6 {[%emt 0:19:19]} 9. Qd2 {[%emt 0:12:02]} d5 {[%emt 0:11:28]} 10. exd5 {[%emt 0:02:57] The position is equal.} Nxd5 {[%emt 0:00:38]} 11. Nxd5 {[%emt 0:00:30]} Qxd5 {[%emt 0:05:29]} 12. Qxd5 {[%emt 0:03:55]} Bxd5 {[%emt 0:00:04]} 13. O-O-O {[%emt 0:00:11]} Be6 {[%emt 0:12:54]} 14. Nc5 {[%emt 0:02:59]} Bxc5 {[%emt 0:04:04]} 15. Bxc5 {[%emt 0:01:23]} f6 $146 {[%emt 0:04:35][%cal Oe8f7]} (15... Rd8 16. Bd3 Rd5 17. Bb6 f5 18. Rhe1 Kf7 19. g4 g6 20. c3 Rc8 21. Kb1 Kf6 {1-0 Narva,M (2355)-Kulaots,K (2527) EST Masters Tornelo INT rapid 2022 (1.2)}) 16. Be2 {[%emt 0:02:32]} Kf7 {[%emt 0:00:41][%cal Oa8c8]} 17. b3 {[%emt 0:07:52]} Rac8 {[%emt 0:07:59]} 18. Bf3 {[%emt 0:01:26]} f5 {[%emt 0:08:06]} 19. Kb2 {[%emt 0:00:30]} e4 {[%emt 0:01:31]} 20. Be2 {[%emt 0:00:23]} Rhd8 {[%emt 0:04:53]} 21. a3 {[%emt 0:06:40]} Ne7 {[%emt 0:04:34][%cal Bc6e7,Be7g6,Bg6e5,Be5d3][%mdl 32] [#] And now ...Rxd1 would win.} 22. Bd4 {[%emt 0:03:54]} Rd7 {[%emt 0:01:19]} 23. c4 {[%emt 0:07:47] White has a queen side majority} Ng6 {[%emt 0:02:52]} 24. Be3 {[%emt 0:01:24] Prevents Nf4} Rcd8 {[%emt 0:01:15]} 25. Kc3 {[%emt 0:07:18]} (25. Rxd7+ {simplifies} Rxd7 26. g3 Ne5 27. Kc3) 25... Ne5 {[%emt 0:02:47]} 26. Bb6 {[%emt 0:01:43]} Rxd1 {[%emt 0:01:09]} 27. Rxd1 {[%emt 0:00:01]} Rxd1 28. Bxd1 $14 {[%emt 0:00:01][%mdl 4096] Endgame KBB-KBN} Nd3 {[%emt 0:01:09]} 29. h4 {[%emt 0:01:35] White is better.} Ke7 {[%emt 0:01:00]} 30. g3 {[%emt 0:01:35]} Kd6 {[%emt 0:01:20]} 31. Bd4 {[%emt 0:00:01]} g6 {[%emt 0:00:13]} 32. a4 {[%emt 0:01:31]} Kc6 {[%emt 0:00:26]} 33. b4 {[%emt 0:00:41]} b5 {[%emt 0:00:59]} 34. cxb5+ {[%emt 0:01:45]} axb5 {[%emt 0:00:03]} 35. f3 {[%emt 0:00:14]} Nc1 {[%emt 0:00:53]} 36. Bc5 {[%emt 0:04:18]} Bc4 {[%emt 0:00:35]} 37. fxe4 {[%emt 0:03:50]} Ne2+ {[%emt 0:00:30]} 38. Bxe2 {[%emt 0:02:43]} Bxe2 {[%emt 0:00:03]} 39. exf5 {[%emt 0:00:03]} gxf5 {[%emt 0:00:14]} 40. a5 {[%emt 0:00:00]} Kb7 {[%emt 0:00:00]} 41. Kd4 {[%emt 0:00:03]} h5 {[%emt 0:17:21] Weighted Error Value: White=0.07 (flawless) /Black=0.12 (very precise)   Inaccurate:     	White=2     	Black=4      OK:         	White=15    	Black=7      Best:        	White=2     	---} 1/2-1/2

[Event "Romanian Championship Open 2025"]
[Site "Craiova"]
[Date "2025.02.19"]
[Round "5.10"]
[White "Bida, Mihai-Eugen"]
[Black "Prisacaru, Stefan-Emilian"]
[Result "0-1"]
[Annotator "RC"]
[ECO "D38"]
[WhiteElo "2413"]
[BlackElo "2212"]
[PlyCount "132"]
[EventDate "2025.02.12"]
[EventType "swiss"]
[EventCountry "ROU"]
[SourceTitle "playchess.com"]
[Source "ChessBase"]
[SourceQuality "1"]
[TimeControl "40/5400+30:900+30"]

1. d4 {[%emt 0:00:02]} d5 {[%emt 0:00:04]} 2. c4 {[%emt 0:00:05]} e6 {[%emt 0:00:03]} 3. Nf3 {[%emt 0:00:08]} Nf6 {[%emt 0:00:06]} 4. cxd5 {[%emt 0:00:11]} exd5 {[%emt 0:00:07]} 5. Nc3 {[%emt 0:00:08]} Nbd7 {[%emt 0:00:20]} 6. Bg5 {[%emt 0:00:55]} Bb4 {[%emt 0:00:38]} 7. e3 {[%emt 0:01:17]} c5 {[%emt 0:00:39]} 8. Bd3 {[%emt 0:02:34]} Qa5 {[%emt 0:00:34]} 9. Qc2 {[%emt 0:02:35]} c4 {[%emt 0:00:06]} 10. Bf5 {[%emt 0:00:38]} O-O {[%emt 0:00:31]} 11. O-O {[%emt 0:00:27]} g6 {[%emt 0:00:49]} 12. Bh3 {[%emt 0:03:03]} Kg7 {[%emt 0:01:59]} 13. a3 {[%emt 0:09:56]} Bxc3 {[%emt 0:06:54]} 14. bxc3 {[%emt 0:00:16]} Ne4 {[%emt 0:00:19]} 15. Be7 {[%emt 0:03:04]} Re8 {[%emt 0:00:29]} 16. Bb4 {[%emt 0:00:37]} Qc7 {[%emt 0:00:32]} 17. a4 {[%emt 0:00:22]} Ndf6 {[%emt 0:03:46]} 18. Bxc8 {[%emt 0:00:45]} Raxc8 {[%emt 0:00:06]} 19. a5 {[%emt 0:03:16]} Re6 {[%emt 0:03:33]} 20. Ne5 {[%emt 0:06:58]} Nd7 {[%emt 0:02:17]} 21. Nf3 {[%emt 0:02:59]} Rce8 {[%emt 0:08:52]} 22. Nd2 {[%emt 0:00:37]} Ndf6 {[%emt 0:02:15]} 23. Nxe4 {[%emt 0:00:51]} Rxe4 {[%emt 0:01:58]} 24. h3 {[%emt 0:02:20]} h5 {[%emt 0:01:41]} 25. Rfe1 {[%emt 0:02:52]} Qd7 {[%emt 0:01:39]} 26. Bc5 {[%emt 0:01:39]} Nh7 {[%emt 0:03:55]} 27. Qd2 {[%emt 0:04:51]} Qe6 {[%emt 0:09:42]} 28. Qe2 {[%emt 0:07:38]} Ng5 {[%emt 0:05:11]} 29. Qf1 {[%emt 0:00:04]} f5 {[%emt 0:05:36]} 30. Reb1 {[%emt 0:03:45]} f4 {[%emt 0:04:28]} 31. exf4 {[%emt 0:01:58]} Rxf4 {[%emt 0:00:41]} 32. Re1 {[%emt 0:06:46]} Re4 {[%emt 0:02:01]} 33. Rxe4 {[%emt 0:01:50]} Nxe4 {[%emt 0:00:07]} 34. Bb4 {[%emt 0:00:26]} Nd2 {[%emt 0:02:59]} 35. Qd1 {[%emt 0:00:35]} Nb3 {[%emt 0:01:29]} 36. Ra2 {[%emt 0:02:39]} Qe4 {[%emt 0:07:34]} 37. Rb2 {[%emt 0:05:03]} Qd3 {[%emt 0:10:35]} 38. Qb1 {[%emt 0:00:05]} Qxb1+ {[%emt 0:00:13]} 39. Rxb1 {[%emt 0:00:06]} Re2 {[%emt 0:00:14]} 40. Kf1 {[%emt 0:00:00]} Rc2 {[%emt 0:00:00]} 41. Re1 {[%emt 0:04:04]} Nd2+ {[%emt 0:11:18]} 42. Kg1 {[%emt 0:00:06]} Ne4 {[%emt 0:00:15]} 43. f3 {[%emt 0:01:08]} Nxc3 {[%emt 0:00:08]} 44. Bxc3 {[%emt 0:01:40]} Rxc3 {[%emt 0:00:04]} 45. Re7+ {[%emt 0:00:41]} Kf6 {[%emt 0:00:13]} 46. Rxb7 {[%emt 0:00:06]} Rd3 {[%emt 0:00:32]} 47. Rxa7 {[%emt 0:00:11]} Rxd4 {[%emt 0:00:04]} 48. Rc7 {[%emt 0:01:12]} Rd2 {[%emt 0:01:29]} 49. g4 {[%emt 0:00:56]} hxg4 {[%emt 0:03:50]} 50. fxg4 {[%emt 0:00:05]} g5 {[%emt 0:00:08]} 51. Rc6+ {[%emt 0:00:05]} Ke5 {[%emt 0:00:08]} 52. h4 {[%emt 0:00:03]} Ra2 {[%emt 0:15:38]} 53. a6 {[%emt 0:01:23]} c3 {[%emt 0:00:26]} 54. Rxc3 {[%emt 0:01:47]} gxh4 {[%emt 0:00:37]} 55. Rh3 {[%emt 0:00:45]} Kf4 {[%emt 0:00:21]} 56. Rd3 {[%emt 0:01:52]} Ke4 {[%emt 0:00:44]} 57. Rh3 {[%emt 0:00:13]} Kf4 {[%emt 0:00:06]} 58. Rd3 {[%emt 0:00:03]} Ke4 {[%emt 0:00:03]} 59. Rh3 {[%emt 0:01:19]} d4 {[%emt 0:01:49]} 60. Kf1 {[%emt 0:00:38]} d3 {[%emt 0:01:38]} 61. Ke1 {[%emt 0:00:13]} Kd4 {[%emt 0:00:37]} 62. Rxh4 {[%emt 0:00:17]} Kc3 {[%emt 0:00:07]} 63. Rh6 {[%emt 0:01:22]} Ra1+ {[%emt 0:00:13]} 64. Kf2 {[%emt 0:00:05]} d2 {[%emt 0:00:27]} 65. Rc6+ {[%emt 0:02:35]} Kb4 {[%emt 0:00:22]} 66. Rb6+ {[%emt 0:00:57]} Kc5 {[%emt 0:00:38]} 0-1

[Event "Romanian Championship Open 2025"]
[Site "Craiova"]
[Date "2025.02.19"]
[Round "5.11"]
[White "Secheres, Adrian-Simion"]
[Black "Tanasie, Cosmin"]
[Result "1-0"]
[Annotator "RC"]
[ECO "A44"]
[WhiteElo "2350"]
[BlackElo "2198"]
[PlyCount "105"]
[EventDate "2025.02.12"]
[EventType "swiss"]
[EventCountry "ROU"]
[SourceTitle "playchess.com"]
[Source "ChessBase"]
[SourceQuality "1"]
[TimeControl "40/5400+30:900+30"]

1. d4 {[%emt 0:01:31]} c5 {[%emt 0:00:07]} 2. d5 {[%emt 0:00:18]} e5 {[%emt 0:00:06]} 3. e4 {[%emt 0:00:26]} d6 {[%emt 0:00:06]} 4. Ne2 {[%emt 0:00:39]} Be7 {[%emt 0:00:33]} 5. Nec3 {[%emt 0:01:00]} Bg5 {[%emt 0:02:57]} 6. Nd2 {[%emt 0:00:42]} Bxd2+ {[%emt 0:01:40]} 7. Bxd2 {[%emt 0:00:19]} Nf6 {[%emt 0:00:36]} 8. Bb5+ {[%emt 0:07:17]} Nbd7 {[%emt 0:00:25]} 9. a4 {[%emt 0:00:24]} O-O {[%emt 0:01:45]} 10. O-O {[%emt 0:02:19]} Ne8 {[%emt 0:07:24]} 11. Qe2 {[%emt 0:16:47]} Qe7 {[%emt 0:01:34]} 12. Nd1 {[%emt 0:02:16]} g6 {[%emt 0:02:02]} 13. Ra3 {[%emt 0:03:15]} Ng7 {[%emt 0:02:35]} 14. Bh6 {[%emt 0:05:01]} a6 {[%emt 0:15:59]} 15. Bd3 {[%emt 0:08:50]} Nf6 {[%emt 0:24:56]} 16. Bg5 {[%emt 0:04:34]} Ngh5 {[%emt 0:00:56]} 17. g3 {[%emt 0:07:53]} Bh3 {[%emt 0:04:43]} 18. Re1 {[%emt 0:00:12]} Rfe8 {[%emt 0:06:23]} 19. f3 {[%emt 0:02:15]} Bc8 {[%emt 0:02:19]} 20. Qd2 {[%emt 0:01:12]} b6 {[%emt 0:09:40]} 21. Nf2 {[%emt 0:05:43]} Ng7 {[%emt 0:03:51]} 22. Bh4 {[%emt 0:05:11]} Rf8 {[%emt 0:03:27]} 23. Bf1 {[%emt 0:09:37]} Nge8 {[%emt 0:00:26]} 24. Qh6 {[%emt 0:01:09]} Kh8 {[%emt 0:02:06]} 25. f4 {[%emt 0:05:02]} Rg8 {[%emt 0:00:45]} 26. Bg5 {[%emt 0:02:22]} Qf8 {[%emt 0:01:25]} 27. Qh4 {[%emt 0:00:39]} Nd7 {[%emt 0:00:08]} 28. Bh3 {[%emt 0:02:11]} Qg7 {[%emt 0:01:54]} 29. f5 {[%emt 0:01:44]} f6 {[%emt 0:00:52]} 30. Bh6 {[%emt 0:00:06]} Qe7 {[%emt 0:00:26]} 31. fxg6 {[%emt 0:00:19]} Rxg6 {[%emt 0:00:54]} 32. Bf5 {[%emt 0:00:16]} Rg8 {[%emt 0:00:03]} 33. g4 {[%emt 0:01:28]} Nf8 {[%emt 0:00:19]} 34. Rh3 {[%emt 0:01:14]} Ng6 {[%emt 0:00:18]} 35. Qg3 {[%emt 0:01:45]} b5 {[%emt 0:00:17]} 36. a5 {[%emt 0:00:44]} Bd7 {[%emt 0:01:47]} 37. Kh1 {[%emt 0:01:18]} Ra7 {[%emt 0:00:18]} 38. Qf3 {[%emt 0:00:18]} Rb7 {[%emt 0:00:42]} 39. Rg1 {[%emt 0:00:49]} Qf7 {[%emt 0:01:33]} 40. Nd1 {[%emt 0:00:00]} Ng7 {[%emt 0:00:00]} 41. Ne3 {[%emt 0:01:30]} Ra7 {[%emt 0:02:37]} 42. Rf1 {[%emt 0:03:23]} Ne8 {[%emt 0:01:38]} 43. Rh5 {[%emt 0:03:57]} Rb7 {[%emt 0:00:35]} 44. Ng2 {[%emt 0:02:58]} Ng7 {[%emt 0:01:48]} 45. Rh3 {[%emt 0:00:35]} Ne8 {[%emt 0:01:23]} 46. Rg3 {[%emt 0:01:27]} Qe7 {[%emt 0:04:05]} 47. g5 {[%emt 0:02:58]} Bxf5 {[%emt 0:02:34]} 48. exf5 {[%emt 0:00:07]} Nf4 {[%emt 0:02:39]} 49. g6 {[%emt 0:02:06]} hxg6 {[%emt 0:01:32]} 50. Bxf4 {[%emt 0:00:36]} exf4 {[%emt 0:00:48]} 51. Nxf4 {[%emt 0:00:24]} g5 {[%emt 0:00:38]} 52. Rh3+ {[%emt 0:00:15]} Kg7 {[%emt 0:00:02]} 53. Ne6+ {[%emt 0:00:04]} 1-0

[Event "Romanian Championship Open 2025"]
[Site "Craiova"]
[Date "2025.02.19"]
[Round "5.12"]
[White "Dascalescu, Adelin-Stefan"]
[Black "Filip, Andrei"]
[Result "0-1"]
[Annotator "RC"]
[ECO "D00"]
[WhiteElo "2045"]
[BlackElo "2320"]
[PlyCount "76"]
[EventDate "2025.02.12"]
[EventType "swiss"]
[EventCountry "ROU"]
[SourceTitle "playchess.com"]
[Source "ChessBase"]
[SourceQuality "1"]
[TimeControl "40/5400+30:900+30"]

1. d4 {[%emt 0:00:01]} Nf6 {[%emt 0:00:12]} 2. Nf3 {[%emt 0:00:04]} g6 {[%emt 0:00:07]} 3. Nc3 {[%emt 0:00:06]} d5 {[%emt 0:00:07]} 4. Bf4 {[%emt 0:00:04]} Bg7 {[%emt 0:00:17]} 5. Nb5 {[%emt 0:00:10]} Na6 {[%emt 0:00:08]} 6. e3 {[%emt 0:00:16]} O-O {[%emt 0:00:09]} 7. h3 {[%emt 0:00:03]} Ne4 {[%emt 0:00:09]} 8. Nd2 {[%emt 0:00:10]} c6 {[%emt 0:05:49]} 9. Nxe4 {[%emt 0:01:49]} dxe4 {[%emt 0:00:24]} 10. Nc3 {[%emt 0:00:07]} c5 {[%emt 0:02:47]} 11. Bxa6 {[%emt 0:04:24]} cxd4 {[%emt 0:04:03]} 12. exd4 {[%emt 0:01:59]} bxa6 {[%emt 0:00:07]} 13. Be3 {[%emt 0:01:18]} e6 {[%emt 0:11:02]} 14. Qd2 {[%emt 0:02:23]} Bb7 {[%emt 0:07:19]} 15. Na4 {[%emt 0:07:28]} Bc6 {[%emt 0:07:08]} 16. Nc5 {[%emt 0:00:24]} Qb6 {[%emt 0:00:28]} 17. c3 {[%emt 0:00:59]} Rfd8 {[%emt 0:01:02]} 18. Qc2 {[%emt 0:02:29]} Rab8 {[%emt 0:06:12]} 19. b3 {[%emt 0:03:21]} Rbc8 {[%emt 0:00:33]} 20. Rc1 {[%emt 0:01:25]} Ba8 {[%emt 0:01:51]} 21. O-O {[%emt 0:03:20]} Qc6 {[%emt 0:03:40]} 22. Qe2 {[%emt 0:04:57]} Qb5 {[%emt 0:02:35]} 23. Qc2 {[%emt 0:02:31]} e5 {[%emt 0:05:20]} 24. c4 {[%emt 0:01:30]} Qa5 {[%emt 0:02:57]} 25. d5 {[%emt 0:01:25]} Rxc5 {[%emt 0:01:25]} 26. Bxc5 {[%emt 0:00:02]} Qxc5 {[%emt 0:00:07]} 27. Qxe4 {[%emt 0:00:18]} f5 {[%emt 0:04:13]} 28. Qh4 {[%emt 0:01:00]} Rd7 {[%emt 0:02:19]} 29. Rfd1 {[%emt 0:02:21]} a5 {[%emt 0:02:16]} 30. Qg3 {[%emt 0:04:18]} Qc7 {[%emt 0:04:00]} 31. b4 {[%emt 0:08:19]} Bh6 {[%emt 0:02:02]} 32. Rc2 {[%emt 0:04:52]} Bxd5 {[%emt 0:05:04]} 33. Re1 {[%emt 0:07:30]} Be4 {[%emt 0:01:21]} 34. Rce2 {[%emt 0:01:18]} Bd2 {[%emt 0:04:25]} 35. Rxe4 {[%emt 0:01:28]} fxe4 {[%emt 0:00:19]} 36. Rxe4 {[%emt 0:00:02]} Bxb4 {[%emt 0:01:19]} 37. Qg4 {[%emt 0:01:49]} Qd6 {[%emt 0:00:47]} 38. Kh2 {[%emt 0:00:59]} Rf7 {[%emt 0:00:52]} 0-1

[Event "Romanian Championship Open 2025"]
[Site "Craiova"]
[Date "2025.02.19"]
[Round "5.13"]
[White "Cosma, Ioan"]
[Black "Voiteanu, Gabriel"]
[Result "0-1"]
[Annotator "RC"]
[ECO "D02"]
[WhiteElo "2286"]
[BlackElo "2159"]
[PlyCount "72"]
[EventDate "2025.02.12"]
[EventType "swiss"]
[EventCountry "ROU"]
[SourceTitle "playchess.com"]
[Source "ChessBase"]
[SourceQuality "1"]
[TimeControl "40/5400+30:900+30"]

1. Nf3 {[%emt 0:01:18]} d5 {[%emt 0:00:14]} 2. g3 {[%emt 0:00:43]} Nf6 {[%emt 0:00:31]} 3. Bg2 {[%emt 0:00:13]} c5 {[%emt 0:00:27]} 4. O-O {[%emt 0:00:26]} Nc6 {[%emt 0:01:32]} 5. d4 {[%emt 0:00:14]} cxd4 {[%emt 0:01:35]} 6. Nxd4 {[%emt 0:00:08]} e5 {[%emt 0:00:19]} 7. Nxc6 {[%emt 0:00:31]} bxc6 {[%emt 0:00:02]} 8. c4 {[%emt 0:00:08]} Be7 {[%emt 0:01:34]} 9. Nc3 {[%emt 0:02:15]} e4 {[%emt 0:02:51]} 10. cxd5 {[%emt 0:03:14]} cxd5 {[%emt 0:00:13]} 11. Bg5 {[%emt 0:00:21]} Be6 {[%emt 0:02:56]} 12. Bxf6 {[%emt 0:02:13]} Bxf6 {[%emt 0:02:41]} 13. Qa4+ {[%emt 0:00:25]} Qd7 {[%emt 0:04:41]} 14. Qxd7+ {[%emt 0:00:51]} Kxd7 {[%emt 0:00:35]} 15. Rfd1 {[%emt 0:00:18]} Bxc3 {[%emt 0:00:44]} 16. bxc3 {[%emt 0:00:06]} Ke7 {[%emt 0:02:07]} 17. f3 {[%emt 0:07:30]} f5 {[%emt 0:06:12]} 18. c4 {[%emt 0:01:54]} dxc4 {[%emt 0:02:51]} 19. fxe4 {[%emt 0:00:05]} Rad8 {[%emt 0:04:34]} 20. Kf2 {[%emt 0:11:21]} Rxd1 {[%emt 0:06:28]} 21. Rxd1 {[%emt 0:00:08]} Rb8 {[%emt 0:00:35]} 22. exf5 {[%emt 0:02:38]} Bxf5 {[%emt 0:00:04]} 23. Rd5 {[%emt 0:00:37]} Bb1 {[%emt 0:14:45]} 24. Ra5 {[%emt 0:18:55]} c3 {[%emt 0:05:29]} 25. Rxa7+ {[%emt 0:00:17]} Kd8 {[%emt 0:04:02]} 26. Bh3 {[%emt 0:12:31]} Bg6 {[%emt 0:12:18]} 27. Rd7+ {[%emt 0:14:45]} Ke8 {[%emt 0:00:23]} 28. Rc7 {[%emt 0:00:05]} c2 {[%emt 0:00:44]} 29. e4 {[%emt 0:00:53]} Bxe4 {[%emt 0:01:02]} 30. Ke3 {[%emt 0:02:29]} Bg6 {[%emt 0:02:50]} 31. Bg4 {[%emt 0:05:41]} Rd8 {[%emt 0:01:43]} 32. h4 {[%emt 0:01:45]} Rd3+ {[%emt 0:03:07]} 33. Kf4 {[%emt 0:01:26]} Rd4+ {[%emt 0:01:55]} 34. Kg5 {[%emt 0:00:21]} Bd3 {[%emt 0:02:29]} 35. Rc8+ {[%emt 0:05:01]} Ke7 {[%emt 0:00:37]} 36. Rc7+ {[%emt 0:00:07]} Kd6 {[%emt 0:00:27]} 0-1